bitfinex/quotes_BTCUSD_20210402
["timestamp","ask_amount","ask_price","bid_price","bid_amount"]
[1617357373854,0.00263867,59618.0,59617.0,1.63852]
[1617357374057,0.00263867,59618.0,59617.0,1.88352]
[1617357374453,0.00263867,59618.0,59617.0,1.496549]
[1617357375064,0.00263867,59618.0,59617.0,1.245]
[1617357375264,0.00263867,59618.0,59612.0,0.1]
[1617357375461,0.00263867,59618.0,59611.0,0.335398]
[1617357375665,0.00263867,59618.0,59603.0,0.37476142]
[1617357375868,0.00263867,59618.0,59603.0,0.339432]
[1617357376066,0.00263867,59618.0,59617.0,1.0]
[1617357377263,0.00263867,59618.0,59617.0,1.386971]
[1617357377503,0.00263867,59618.0,59617.0,1.591971]
[1617357378707,0.00263867,59618.0,59617.0,1.691971]
[1617357378904,0.00263867,59618.0,59617.0,0.486971]
[1617357379698,0.00263867,59618.0,59617.0,1.486971]
[1617357380119,0.00263867,59618.0,59617.0,1.738515]
[1617357380314,0.00263867,59618.0,59617.0,2.063515]
[1617357381524,0.00263867,59618.0,59617.0,2.228515]
[1617357381716,0.00263867,59618.0,59617.0,2.644625]
[1617357382316,0.00263867,59618.0,59617.0,2.64124271]
[1617357384418,0.00263867,59618.0,59617.0,2.06013271]
[1617357384617,0.00263867,59618.0,59617.0,1.96013271]
[1617357386218,0.00263867,59618.0,59617.0,2.06013271]
[1617357386418,0.00263867,59618.0,59617.0,1.96013271]
[1617357387220,0.00063867,59618.0,59617.0,1.96013271]
[1617357388016,0.00063867,59618.0,59617.0,2.06013271]
[1617357392225,0.00063867,59618.0,59617.0,1.96013271]
[1617357393447,0.00063867,59618.0,59617.0,2.06013271]
[1617357396683,0.00063867,59618.0,59617.0,1.96013271]
[1617357397091,0.00063867,59618.0,59617.0,1.576544]
[1617357397884,0.00063867,59618.0,59617.0,1.325]
[1617357399130,0.00063867,59618.0,59617.0,1.712008]
[1617357399560,0.00063867,59618.0,59617.0,1.325]
[1617357399765,4.286e-05,59618.0,59617.0,1.325]
[1617357400356,4.286e-05,59618.0,59617.0,0.325]
[1617357400558,4.286e-05,59618.0,59612.0,0.251559]
[1617357400759,0.00088153,59618.0,59617.0,0.77315089]
[1617357401366,0.00088153,59618.0,59617.0,1.16015889]
[1617357401569,0.00088153,59618.0,59617.0,1.37015889]
[1617357401964,0.27711104,59624.0,59617.0,0.597008]
[1617357402164,0.27711104,59624.0,59617.0,0.21]
[1617357402368,0.27711104,59624.0,59617.0,1.0]
[1617357402764,0.27711104,59624.0,59614.0,0.251557]
[1617357403164,0.27711104,59624.0,59623.0,1.0]
[1617357403369,0.22582861,59625.0,59623.0,1.0]
[1617357403567,2.04904045,59624.0,59614.0,0.251557]
[1617357403779,0.28062662,59623.0,59614.0,0.251557]
[1617357404087,0.28062662,59623.0,59608.0,0.00303724]
[1617357404088,0.156,59618.0,59608.0,0.00303724]
[1617357404285,0.45165,59618.0,59608.0,0.00303724]
[1617357404477,0.15,59617.0,59608.0,0.00303724]
[1617357405277,0.15,59617.0,59607.0,0.5]
[1617357405678,0.0006,59621.0,59616.0,0.12815089]
[1617357407290,0.0006,59621.0,59608.0,0.351577]
[1617357407498,0.0006,59621.0,59610.0,0.25157]
[1617357407691,0.23,59620.0,59610.0,0.25157]
[1617357407892,0.23,59620.0,59611.0,0.03145407]
[1617357408091,0.23,59620.0,59619.0,0.11432839]
[1617357408493,0.23,59620.0,59611.0,0.1]
[1617357408699,0.23,59619.0,59611.0,0.1]
[1617357409320,0.72,59619.0,59618.0,0.11432839]
[1617357409721,0.23,59619.0,59611.0,0.1]
[1617357409925,0.28233056,59621.0,59618.0,0.36407839]
[1617357410524,0.002,59623.0,59618.0,0.36407839]
[1617357410730,0.225795,59626.0,59611.0,0.1]
[1617357410731,0.1,59626.0,59611.0,0.1]
[1617357410926,0.00197278,59629.0,59622.0,1.0]
[1617357410927,0.22782861,59625.0,59622.0,1.0]
[1617357411522,0.00083867,59624.0,59622.0,1.0]
[1617357412553,0.002,59623.0,59610.0,0.0066]
[1617357412762,0.002,59623.0,59614.0,0.251551]
[1617357413754,0.002,59623.0,59622.0,0.75932839]
[1617357413957,2.67904045,59623.0,59622.0,0.75932839]
[1617357414151,3.27103397,59623.0,59613.0,0.0034]
[1617357414391,0.64432408,59622.0,59613.0,0.0034]
[1617357414586,0.36199352,59622.0,59613.0,0.0034]
[1617357414787,3.05199352,59623.0,59613.0,0.0034]
[1617357414988,0.59199352,59623.0,59613.0,0.0034]
[1617357415191,0.23,59622.0,59621.0,0.75932839]
[1617357415591,0.00083867,59624.0,59621.0,0.75932839]
[1617357415795,0.00083867,59624.0,59613.0,0.5]
[1617357415992,0.00083867,59624.0,59614.0,0.491808]
[1617357416201,0.00083867,59624.0,59623.0,1.0]
[1617357417817,0.21666728,59625.0,59623.0,1.0]
[1617357418022,0.21666728,59625.0,59624.0,0.185]
[1617357418220,0.21666728,59625.0,59623.0,1.0]
[1617357421229,1.63101382,59624.0,59623.0,1.0]
[1617357421432,1.63101382,59624.0,59614.0,0.1]
[1617357421631,0.23,59623.0,59614.0,0.1]
[1617357421830,0.23,59623.0,59613.0,0.004]
[1617357422255,0.28101382,59622.0,59613.0,0.004]
[1617357422457,0.23,59621.0,59609.0,0.1044]
[1617357422658,0.23,59620.0,59609.0,0.1044]
[1617357423056,0.225,59620.0,59609.0,0.0044]
[1617357423259,0.225,59619.0,59609.0,0.0044]
[1617357423455,0.225,59619.0,59606.0,0.10649472]
[1617357423456,0.225,59619.0,59606.0,0.11089472]
[1617357423658,0.225,59619.0,59607.0,0.03177391]
[1617357423863,0.0006,59621.0,59618.0,0.11507839]
[1617357424065,3.479,59619.0,59618.0,0.11507839]
[1617357424265,3.84099352,59619.0,59618.0,0.11507839]
[1617357424660,3.91699352,59619.0,59618.0,0.11507839]
[1617357424883,0.225,59619.0,59618.0,0.11507839]
[1617357425087,2.08471202,59619.0,59618.0,0.11507839]
[1617357425482,0.50471202,59619.0,59609.0,0.1]
[1617357425686,0.225,59618.0,59609.0,0.1042]
[1617357426081,0.0006,59621.0,59617.0,1.0]
[1617357426281,0.125787,59622.0,59617.0,1.0]
[1617357426484,0.00083792,59618.0,59609.0,0.1]
[1617357426683,0.00083792,59618.0,59610.0,0.005]
[1617357426882,0.00083792,59618.0,59612.0,0.251561]
[1617357427085,0.00083792,59618.0,59617.0,0.11507839]
[1617357429524,0.00083792,59618.0,59615.0,0.1]
[1617357429726,0.00083792,59618.0,59617.0,0.36557839]
[1617357431162,1.08583792,59618.0,59617.0,0.36557839]
[1617357431361,0.21583792,59618.0,59617.0,0.36557839]
[1617357431562,0.00083792,59618.0,59617.0,0.36557839]
[1617357432962,0.00083792,59618.0,59616.0,0.00252756]
[1617357433165,0.38049792,59618.0,59616.0,0.00252756]
[1617357433365,0.36654014,59617.0,59616.0,0.00252756]
[1617357433768,0.36654014,59617.0,59616.0,0.11760595]
[1617357433960,1.49654014,59617.0,59616.0,0.11760595]
[1617357434167,1.49654014,59617.0,59616.0,0.00252756]
[1617357434365,0.36654014,59617.0,59616.0,0.36885595]
[1617357435789,0.36654014,59617.0,59616.0,0.00252756]
[1617357435985,0.53861,59617.0,59616.0,0.00252756]
[1617357436389,0.43861,59617.0,59616.0,0.00252756]
[1617357436588,0.43861,59617.0,59616.0,0.11760595]
[1617357437187,0.6513023,59617.0,59616.0,0.00252756]
[1617357437386,0.65203764,59617.0,59616.0,0.36783284]
[1617357437587,0.43934534,59617.0,59616.0,0.36783284]
[1617357438014,0.65200994,59617.0,59616.0,0.00300445]
[1617357438619,0.86867722,59617.0,59616.0,0.11808284]
[1617357439021,0.65601262,59617.0,59616.0,0.00300445]
[1617357439816,0.65601262,59617.0,59616.0,1.00300445]
[1617357440213,0.65601262,59617.0,59616.0,0.00300445]
[1617357440632,0.65601262,59617.0,59616.0,0.76308284]
[1617357441038,0.65601262,59617.0,59616.0,0.00300445]
[1617357441234,0.61101262,59617.0,59616.0,0.00300445]
[1617357441435,0.61101262,59617.0,59616.0,0.36858284]
[1617357442240,0.61101262,59617.0,59616.0,0.00300445]
[1617357442437,0.61101262,59617.0,59616.0,0.64800445]
[1617357442636,0.21740262,59617.0,59616.0,0.64800445]
[1617357443660,0.21740262,59617.0,59616.0,0.00300445]
[1617357444258,0.87740262,59617.0,59616.0,0.89175445]
[1617357444460,0.87740262,59617.0,59609.0,0.25157]
[1617357445660,0.87740262,59617.0,59616.0,0.89250333]
[1617357446104,0.87740262,59617.0,59609.0,0.25157]
[1617357446304,0.87740262,59617.0,59616.0,0.89250333]
[1617357446508,0.66073534,59617.0,59616.0,0.67583605]
[1617357446707,0.66073534,59617.0,59610.0,0.01]
[1617357447905,0.66073534,59617.0,59616.0,0.645]
[1617357448106,0.66073534,59617.0,59616.0,0.655]
[1617357449010,0.66073534,59617.0,59616.0,0.01]
[1617357449209,0.66073534,59617.0,59612.0,0.01]
[1617357449413,0.66073534,59617.0,59616.0,0.645]
[1617357449611,0.66073534,59617.0,59616.0,0.78]
[1617357449809,0.66073534,59617.0,59616.0,0.144]
[1617357450009,0.66073534,59617.0,59616.0,0.7815]
[1617357450414,0.66073534,59617.0,59616.0,0.009]
[1617357450612,0.66073534,59617.0,59616.0,0.654]
[1617357450811,0.66073534,59617.0,59616.0,0.009]
[1617357451034,0.66073534,59617.0,59612.0,0.01]
[1617357451234,0.66073534,59617.0,59616.0,0.645]
[1617357451632,0.66073534,59617.0,59616.0,0.009]
[1617357451835,0.66073534,59617.0,59616.0,0.2595]
[1617357452638,0.66073534,59617.0,59616.0,0.009]
[1617357452835,0.66073534,59617.0,59616.0,0.645]
[1617357453434,0.66073534,59617.0,59616.0,0.655]
[1617357453867,0.66073534,59617.0,59616.0,0.645]
[1617357454065,0.66073534,59617.0,59600.0,0.03955171]
[1617357454283,0.05504,59614.0,59600.0,0.29115471]
[1617357454468,0.05504,59614.0,59604.0,0.005]
[1617357454669,0.00273534,59617.0,59613.0,0.15]
[1617357454869,0.00073534,59617.0,59613.0,0.15]
[1617357455264,0.00073534,59617.0,59614.0,0.009]
[1617357455864,0.00073534,59617.0,59616.0,0.2705871]
[1617357456289,0.00073534,59617.0,59607.0,0.391808]
[1617357456495,0.00073534,59617.0,59616.0,1.0]
[1617357456697,0.00073534,59617.0,59616.0,1.15]
[1617357457092,0.00073534,59617.0,59616.0,1.16]
[1617357458091,0.00073534,59617.0,59616.0,1.01]
[1617357460372,0.00271026,59617.0,59616.0,1.01]
[1617357460973,0.00369777,59617.0,59616.0,1.01]
[1617357461168,0.00073534,59617.0,59616.0,1.01]
[1617357461371,0.00073534,59617.0,59616.0,1.0]
[1617357461571,0.25234134,59617.0,59616.0,1.0]
[1617357461771,0.25530375,59617.0,59616.0,1.0]
[1617357461970,0.30530375,59617.0,59616.0,1.0]
[1617357462975,0.30234134,59617.0,59616.0,1.0]
[1617357463178,0.00073534,59617.0,59616.0,1.15]
[1617357464774,0.00073534,59617.0,59616.0,1.0]
[1617357470826,0.25234034,59617.0,59616.0,1.0]
[1617357471027,0.002,59616.0,59603.0,0.0054]
[1617357472240,0.002,59616.0,59615.0,0.2505]
[1617357472443,0.251613,59616.0,59615.0,0.2505]
[1617357472643,0.251613,59616.0,59601.0,0.10303724]
[1617357472644,0.301613,59616.0,59601.0,0.10303724]
[1617357472845,0.303613,59616.0,59604.0,0.0058]
[1617357473044,0.303613,59616.0,59615.0,1.0]
[1617357473244,0.301613,59616.0,59615.0,1.0]
[1617357474243,0.251613,59616.0,59615.0,1.042]
[1617357474556,0.00073534,59617.0,59615.0,1.192]
[1617357474965,0.00073534,59617.0,59616.0,0.387008]
[1617357475866,0.00073534,59617.0,59615.0,1.042]
[1617357477075,0.00073534,59617.0,59615.0,1.0]
[1617357477492,0.00073534,59617.0,59616.0,0.041]
[1617357477690,0.00073534,59617.0,59616.0,0.071]
[1617357478091,0.25232934,59617.0,59616.0,0.94925]
[1617357478491,0.25232934,59617.0,59616.0,0.071]
[1617357478892,0.00073534,59617.0,59616.0,1.071]
[1617357480518,0.00073534,59617.0,59616.0,1.03]
[1617357481121,0.00073534,59617.0,59616.0,1.071]
[1617357482647,0.00270966,59617.0,59616.0,1.071]
[1617357484245,0.00270966,59617.0,59616.0,1.036284]
[1617357484446,0.00270966,59617.0,59616.0,0.201]
[1617357484847,0.00073534,59617.0,59616.0,0.041]
[1617357485046,0.00073534,59617.0,59607.0,0.042]
[1617357485277,0.00073534,59617.0,59608.0,0.251578]
[1617357485676,0.00270966,59617.0,59616.0,1.0]
[1617357485872,0.00270966,59617.0,59616.0,1.15]
[1617357486074,0.00073534,59617.0,59616.0,1.15]
[1617357486273,0.00073534,59617.0,59616.0,1.192]
[1617357486675,0.00073534,59617.0,59616.0,1.222]
[1617357487278,0.00270969,59617.0,59616.0,1.174]
[1617357487676,0.00073534,59617.0,59616.0,1.174]
[1617357488097,0.00073534,59617.0,59616.0,1.204]
[1617357488296,0.00073534,59617.0,59616.0,0.15]
[1617357488498,0.00073534,59617.0,59604.0,0.37005595]
[1617357488702,0.00073534,59617.0,59605.0,0.042]
[1617357488901,0.00073534,59617.0,59607.0,0.0056]
[1617357489104,0.00270985,59617.0,59608.0,0.387008]
[1617357489301,0.00270985,59617.0,59609.0,0.135]
[1617357489569,0.00270985,59617.0,59607.0,0.0056]
[1617357489765,0.00270985,59617.0,59616.0,1.0]
[1617357493312,0.00369784,59617.0,59616.0,1.0]
[1617357493711,0.00369784,59617.0,59608.0,0.251575]
[1617357493917,0.10369784,59617.0,59616.0,0.645]
[1617357494116,0.15073534,59617.0,59616.0,0.645]
[1617357494916,0.15369785,59617.0,59616.0,0.645]
[1617357495115,0.00296251,59617.0,59616.0,0.645]
[1617357495515,0.00296251,59617.0,59601.0,0.10303724]
[1617357495737,0.00296251,59617.0,59605.0,0.0064]
[1617357495936,0.00296251,59617.0,59616.0,0.645]
[1617357496736,0.00296251,59617.0,59605.0,0.251599]
[1617357496936,0.00296251,59617.0,59616.0,0.89475]
[1617357497334,0.00296251,59617.0,59605.0,0.251599]
[1617357497538,0.32134956,59618.0,59616.0,0.25227806]
[1617357497738,1.4797507,59617.0,59616.0,0.25227806]
[1617357498373,1.4797507,59617.0,59616.0,0.00252806]
[1617357498773,0.0197507,59617.0,59616.0,1.00252806]
[1617357499182,0.00296154,59617.0,59616.0,1.00252806]
[1617357499375,0.30456054,59618.0,59616.0,1.15252806]
[1617357499573,0.30456054,59618.0,59617.0,0.17]
[1617357501897,0.30539921,59618.0,59616.0,1.00252806]
[1617357502093,0.30409921,59618.0,59616.0,1.00252806]
[1617357503923,0.25539921,59618.0,59616.0,1.00252806]
[1617357504120,0.30539921,59618.0,59616.0,1.00252806]
[1617357504613,0.94296154,59617.0,59616.0,1.00252806]
[1617357504811,0.94,59617.0,59616.0,1.00252806]
[1617357505008,1.21492986,59617.0,59616.0,1.00252806]
[1617357505212,1.59560986,59617.0,59616.0,1.00252806]
[1617357505409,1.59560986,59617.0,59616.0,0.00252806]
[1617357505811,1.59560986,59617.0,59616.0,0.25302806]
[1617357506444,1.59560986,59617.0,59616.0,0.00252806]
[1617357506646,1.32068,59617.0,59616.0,1.00252806]
[1617357506846,0.38364135,59617.0,59616.0,1.00252806]
[1617357507042,0.27789121,59617.0,59616.0,1.00252806]
[1617357507245,1.03789121,59617.0,59616.0,0.00252806]
[1617357507646,1.03789121,59617.0,59616.0,1.00252806]
[1617357508044,0.27789121,59617.0,59616.0,1.00252806]
[1617357508881,0.27789121,59617.0,59616.0,1.00279806]
[1617357509080,0.27492986,59617.0,59616.0,1.00279806]
[1617357509282,0.00296134,59617.0,59616.0,1.00279806]
[1617357509880,0.30539901,59618.0,59616.0,1.00279806]
[1617357510081,1.32,59617.0,59616.0,1.00279806]
[1617357510282,1.32296152,59617.0,59616.0,1.00279806]
[1617357511084,1.32,59617.0,59616.0,0.00279806]
[1617357511493,1.32,59617.0,59616.0,0.89829806]
[1617357512295,1.54974396,59617.0,59616.0,0.00279806]
[1617357512497,1.53,59617.0,59616.0,0.00279806]
[1617357512697,1.71615193,59617.0,59616.0,1.00279806]
[1617357512897,1.73589594,59617.0,59616.0,1.00279806]
[1617357513098,1.71615193,59617.0,59616.0,1.00279806]
[1617357513297,1.73589583,59617.0,59616.0,0.00279806]
[1617357513896,1.73589583,59617.0,59616.0,0.64779806]
[1617357514116,1.73589583,59617.0,59616.0,0.00279806]
[1617357514519,0.20589583,59617.0,59616.0,1.00279806]
[1617357514722,0.0197439,59617.0,59616.0,1.00279806]
[1617357514919,0.27492986,59617.0,59616.0,1.00279806]
[1617357516422,0.29467373,59617.0,59616.0,1.00279806]
[1617357516621,0.48082566,59617.0,59616.0,1.00279806]
[1617357516847,0.29467373,59617.0,59616.0,1.00279806]
[1617357517045,1.29082566,59617.0,59616.0,0.00279806]
[1617357517248,1.29082566,59617.0,59616.0,0.05385855]
[1617357517447,0.48082566,59617.0,59616.0,1.00279806]
[1617357517646,0.27492986,59617.0,59616.0,1.00279806]
[1617357517850,0.32218161,59618.0,59616.0,1.00279806]
[1617357518048,0.27218161,59618.0,59616.0,1.00279806]
[1617357518251,0.25243767,59618.0,59617.0,0.15]
[1617357518648,0.27218839,59618.0,59617.0,0.155]
[1617357519052,0.25243767,59618.0,59617.0,0.155]
[1617357519748,0.25243767,59618.0,59617.0,1.155]
[1617357520542,0.25243767,59618.0,59617.0,1.15]
[1617357521146,0.25243767,59618.0,59617.0,0.15]
[1617357521343,0.25243767,59618.0,59617.0,0.005]
[1617357522148,0.25441191,59618.0,59617.0,0.005]
[1617357522551,0.25441191,59618.0,59617.0,0.822495]
[1617357522752,0.25539912,59618.0,59617.0,0.822495]
[1617357522949,1.20539912,59618.0,59617.0,0.822495]
[1617357523151,1.22218071,59618.0,59617.0,0.822495]
[1617357523345,1.68742071,59618.0,59616.0,0.00279806]
[1617357523550,3.44492986,59617.0,59616.0,0.00279806]
[1617357523745,0.99208862,59617.0,59616.0,0.00779806]
[1617357523945,1.55492986,59617.0,59616.0,0.00779806]
[1617357524346,0.27492986,59617.0,59616.0,1.00779806]
[1617357524547,1.64492986,59617.0,59616.0,1.00779806]
[1617357524945,1.37,59617.0,59616.0,1.00779806]
[1617357525150,0.32218071,59618.0,59616.0,1.00779806]
[1617357526145,0.32218071,59618.0,59616.0,1.00279806]
[1617357526351,0.00296146,59617.0,59616.0,1.00279806]
[1617357527347,0.00296146,59617.0,59616.0,1.00779806]
[1617357527753,0.30243767,59618.0,59616.0,1.00779806]
[1617357527950,1.06296146,59617.0,59616.0,1.00779806]
[1617357528549,1.06,59617.0,59616.0,1.00779806]
[1617357528750,0.00296147,59617.0,59616.0,0.00779806]
[1617357528950,0.56296147,59617.0,59616.0,0.00779806]
[1617357529155,0.56296147,59617.0,59616.0,0.79779806]
[1617357529550,0.56296147,59617.0,59616.0,0.00279806]
[1617357529752,0.73020996,59617.0,59616.0,1.00779806]
[1617357529974,0.17020996,59617.0,59616.0,1.00779806]
[1617357530173,0.00296147,59617.0,59616.0,1.00779806]
[1617357530776,0.30539871,59618.0,59616.0,0.00779806]
[1617357531176,2.8,59617.0,59616.0,0.00779806]
[1617357531376,3.16495459,59617.0,59616.0,0.00779806]
[1617357531575,2.80296107,59617.0,59616.0,0.89904806]
[1617357532179,0.00296107,59617.0,59616.0,0.00779806]
[1617357532385,0.3053987,59618.0,59616.0,0.90404806]
[1617357533017,1.99296108,59617.0,59616.0,0.90404806]
[1617357533215,0.00296108,59617.0,59616.0,0.90404806]
[1617357533418,1.21197402,59617.0,59616.0,0.89904806]
[1617357534419,1.21296105,59617.0,59616.0,0.89904806]
[1617357534684,0.00296105,59617.0,59616.0,0.89904806]
[1617357536330,0.30539876,59618.0,59616.0,0.89904806]
[1617357536533,0.30539876,59618.0,59616.0,0.89504806]
[1617357536732,0.66,59617.0,59616.0,0.89504806]
[1617357537133,0.66,59617.0,59600.0,0.0002]
[1617357537336,0.88683291,59617.0,59604.0,0.0072]
[1617357537536,0.00098705,59614.0,59604.0,0.0072]
[1617357537744,0.00098705,59614.0,59604.0,0.78815955]
[1617357537944,0.00098705,59614.0,59604.0,0.0072]
[1617357538348,0.00098705,59614.0,59613.0,0.99879806]
[1617357539149,0.00098705,59615.0,59613.0,0.99879806]
[1617357539347,0.00098705,59615.0,59614.0,0.145]
[1617357539547,0.00098705,59615.0,59606.0,0.0046]
[1617357539747,0.00098705,59615.0,59614.0,0.99879806]
[1617357539950,0.31968916,59615.0,59614.0,0.99879806]
[1617357540152,0.36870211,59615.0,59614.0,0.99879806]
[1617357540375,0.36870211,59615.0,59614.0,0.99827784]
[1617357540780,0.36870211,59615.0,59614.0,1.14327784]
[1617357541183,0.36968893,59615.0,59614.0,1.14327784]
[1617357541384,0.36968893,59615.0,59614.0,0.99827784]
[1617357541385,0.36870211,59615.0,59614.0,0.99827784]
[1617357541580,0.11709511,59615.0,59597.0,0.00303724]
[1617357541781,0.11709511,59615.0,59603.0,0.0066]
[1617357541980,0.06709511,59615.0,59603.0,0.0066]
[1617357542182,0.05098684,59614.0,59603.0,0.0066]
[1617357542579,0.00098684,59614.0,59603.0,0.0066]
[1617357542780,0.12679484,59614.0,59613.0,0.9075]
[1617357543004,0.12679484,59614.0,59613.0,1.0425]
[1617357543205,0.17679484,59614.0,59613.0,0.135]
[1617357543404,0.17679484,59614.0,59612.0,0.00252821]
[1617357543604,0.05,59613.0,59612.0,0.00252821]
[1617357544404,0.05,59613.0,59612.0,1.00080605]
[1617357544405,0.045,59613.0,59612.0,1.00080605]
[1617357544607,0.04583875,59613.0,59612.0,1.07580605]
[1617357545002,0.04583875,59613.0,59612.0,0.15]
[1617357545204,0.04583875,59613.0,59603.0,0.251606]
[1617357545410,0.04583875,59613.0,59604.0,0.78615955]
[1617357545622,0.04583875,59613.0,59605.0,0.78095955]
[1617357545820,0.04583875,59613.0,59604.0,0.32276]
[1617357546229,0.04583875,59613.0,59606.0,0.387008]
[1617357546428,0.00083875,59613.0,59612.0,1.387008]
[1617357546623,0.00083875,59613.0,59612.0,1.762658]
[1617357547419,0.00083875,59613.0,59612.0,2.042658]
[1617357547622,0.00083875,59613.0,59612.0,1.65565]
[1617357549857,0.00098692,59617.0,59612.0,1.65565]
[1617357550058,0.16298692,59618.0,59613.0,0.355]
[1617357550258,0.00098692,59617.0,59604.0,0.06596]
[1617357550451,0.00098692,59617.0,59616.0,1.0]
[1617357550652,0.00197385,59618.0,59616.0,1.0]
[1617357550893,0.00098693,59617.0,59616.0,1.0]
[1617357551900,0.00296267,59618.0,59616.0,1.0]
[1617357552096,0.00296267,59618.0,59607.0,0.335466]
[1617357552301,0.00098757,59614.0,59607.0,0.341466]
[1617357552703,0.00098757,59614.0,59608.0,0.387008]
[1617357553098,0.00098757,59614.0,59613.0,1.0]
[1617357553298,0.00098757,59614.0,59613.0,1.632008]
[1617357553698,0.00098757,59614.0,59613.0,1.245]
[1617357555101,0.00098757,59614.0,59613.0,1.632008]
[1617357555705,0.00098757,59614.0,59613.0,1.245]
[1617357556528,0.00197514,59614.0,59613.0,1.245]
[1617357556730,0.0029627,59614.0,59613.0,1.245]
[1617357556929,0.0197514,59615.0,59613.0,1.245]
[1617357557127,0.0197514,59615.0,59614.0,0.22]
[1617357557925,0.01975128,59616.0,59614.0,0.22]
[1617357558326,0.01975135,59615.0,59612.0,0.251608]
[1617357558752,0.0029627,59613.0,59612.0,0.251608]
[1617357559159,0.00098727,59614.0,59612.0,0.251608]
[1617357559353,0.00098727,59614.0,59612.0,1.251608]
[1617357559555,0.00098727,59614.0,59613.0,0.295]
[1617357560952,0.00098727,59614.0,59613.0,0.63460453]
[1617357561153,0.00098727,59614.0,59612.0,0.251608]
[1617357561576,0.00098727,59614.0,59613.0,0.33960453]
[1617357561975,0.00098727,59614.0,59612.0,0.251608]
[1617357562179,0.00197453,59615.0,59612.0,0.251608]
[1617357562381,0.00197453,59615.0,59613.0,0.18960453]
[1617357562576,0.00098727,59614.0,59612.0,0.251608]
[1617357563182,0.00098717,59615.0,59614.0,1.0]
[1617357563380,0.00098717,59615.0,59614.0,1.185]
[1617357563580,0.00197433,59616.0,59614.0,1.4366]
[1617357563779,0.00098717,59615.0,59614.0,1.4366]
[1617357564197,0.00098717,59615.0,59614.0,0.4366]
[1617357564398,0.00098717,59615.0,59614.0,0.2516]
[1617357564600,0.00098717,59615.0,59614.0,1.2516]
[1617357566091,0.00098717,59616.0,59614.0,1.2516]
[1617357566293,0.00098717,59615.0,59614.0,1.2516]
[1617357566729,0.00178048,59615.0,59614.0,0.2516]
[1617357566932,0.00178048,59615.0,59614.0,0.638608]
[1617357567133,0.00079331,59615.0,59614.0,1.638608]
[1617357567327,0.00079331,59615.0,59614.0,1.4966]
[1617357569359,0.00178046,59615.0,59614.0,1.4966]
[1617357569952,0.00178046,59615.0,59614.0,0.4966]
[1617357570354,0.00178046,59615.0,59614.0,0.83471969]
[1617357570559,0.00178046,59615.0,59614.0,0.2516]
[1617357570760,0.00079331,59615.0,59614.0,0.638608]
[1617357570958,0.00079331,59615.0,59614.0,1.933608]
[1617357571982,0.00079331,59615.0,59614.0,2.240448]
[1617357573582,0.00079331,59615.0,59614.0,1.85344]
[1617357574181,0.00079331,59615.0,59614.0,1.90369649]
[1617357574605,0.00079331,59615.0,59614.0,2.29070449]
[1617357574808,0.00079331,59615.0,59614.0,2.240448]
[1617357576209,0.00079331,59615.0,59614.0,2.240248]
[1617357586908,0.00079331,59615.0,59614.0,2.440248]
[1617357587507,0.00079331,59615.0,59614.0,2.474409]
[1617357589134,0.00079331,59615.0,59614.0,2.274409]
[1617357589333,0.00079331,59615.0,59614.0,2.474409]
[1617357589938,0.00079331,59615.0,59614.0,1.887401]
[1617357590136,0.00079331,59615.0,59614.0,1.580561]
[1617357590367,0.00079331,59615.0,59614.0,1.967569]
[1617357590766,0.00098455,59619.0,59617.0,0.251554]
[1617357591365,0.00098455,59619.0,59618.0,1.0]
[1617357591568,0.00197286,59621.0,59618.0,1.0]
[1617357591969,0.00197286,59621.0,59619.0,0.251554]
[1617357592166,0.00197286,59621.0,59620.0,1.205]
[1617357592367,0.00197286,59621.0,59620.0,0.315]
[1617357592569,0.00197286,59621.0,59620.0,0.702008]
[1617357592767,0.00197286,59621.0,59620.0,0.315]
[1617357595911,0.00197303,59624.0,59621.0,0.285]
[1617357596111,1.10197306,59622.0,59618.0,1.335405]
[1617357596308,1.15197306,59622.0,59618.0,1.335405]
[1617357596512,0.05197306,59622.0,59618.0,1.335405]
[1617357596713,0.00197306,59622.0,59618.0,1.335405]
[1617357597109,0.00197306,59622.0,59620.0,0.33505377]
[1617357597309,0.00197306,59622.0,59620.0,0.251552]
[1617357599541,0.00197308,59621.0,59620.0,0.251552]
[1617357599743,0.01974715,59621.0,59620.0,0.251552]
[1617357601974,0.01974715,59621.0,59618.0,1.335405]
[1617357602175,0.01974715,59621.0,59618.0,1.0]
[1617357602382,3.1197477,59619.0,59618.0,1.0]
[1617357602577,3.53174122,59619.0,59618.0,1.0]
[1617357602774,3.1697477,59619.0,59600.0,0.0002]
[1617357602972,0.05,59618.0,59600.0,0.0002]
[1617357603174,0.00197467,59616.0,59600.0,0.0002]
[1617357603390,0.00493671,59616.0,59600.0,0.0002]
[1617357603994,4.07503397,59615.0,59600.0,0.0002]
[1617357604198,4.12799603,59615.0,59600.0,0.0002]
[1617357604391,4.14478203,59615.0,59600.0,0.0002]
[1617357604592,4.12503397,59615.0,59614.0,0.2857479]
[1617357604991,4.12503397,59615.0,59614.0,0.034161]
[1617357605791,4.16453382,59615.0,59614.0,0.034161]
[1617357606612,4.12700498,59615.0,59614.0,0.034161]
[1617357607610,4.12503397,59615.0,59614.0,0.034161]
[1617357607811,0.43304045,59615.0,59614.0,0.034161]
[1617357608010,2.85923597,59615.0,59614.0,0.034161]
[1617357608213,0.58103397,59614.0,59610.0,0.25165344]
[1617357608654,0.05,59613.0,59610.0,0.25165344]
[1617357608856,0.41199352,59613.0,59610.0,0.25165344]
[1617357609058,0.21904045,59612.0,59600.0,0.0046]
[1617357609257,0.36199352,59611.0,59608.0,0.251643]
[1617357609457,0.002,59610.0,59608.0,0.251643]
[1617357609914,0.002,59610.0,59609.0,0.89665344]
[1617357610116,0.39171,59612.0,59609.0,0.89665344]
[1617357610716,0.39171,59612.0,59608.0,0.251643]
[1617357610924,0.39171,59612.0,59611.0,1.0]
[1617357611329,0.54571,59612.0,59611.0,1.0]
[1617357611718,0.54412204,59612.0,59608.0,0.251643]
[1617357611918,0.54412204,59612.0,59610.0,0.25165344]
[1617357612316,0.49571,59612.0,59610.0,0.25165344]
[1617357612518,0.49571,59612.0,59604.0,0.251658]
[1617357612920,0.49571,59612.0,59610.0,0.25165344]